Cogmind - Beta 9.4 @@@ ROGUE MODE // 2020.01.08 @ 01:02:07 // Winter2019/RPGLIKE Player: PyroDawn Result: Destroyed by exploding Power Conduit Performance ------------- Evolutions (3) 1500 Regions Visited (6) 1200 Robots Destroyed (0) 0 Value Destroyed (0) 0 Prototype IDs (6) 120 Alien Tech Used (0) 0 Bonus (1034) 1034 TOTAL SCORE: 3854 Bonus ------- Pacifist 834 Entered Garrisons 200 Cogmind --------- Core Integrity 0/1100 Matter 251/300 Energy 149/150 System Corruption 0% Temperature Cool (37) Movement Flying (40) Location -7/Factory Parts ------- > --- POWER (1) -------- Micro Nuclear Core > --- PROPULSION (1) --- Xenon Bombardment Thruster > --- UTILITY (2) ------ Signal Interpreter System Shield > --- WEAPON (1) ------- Chainsword > --- INVENTORY (0) ---- (None) Peak State ------------ > --- POWER ------------ Micro Nuclear Core > --- PROPULSION ------- Xenon Bombardment Thruster > --- UTILITY ---------- Signal Interpreter System Shield > --- WEAPON ----------- Chainsword > --- INVENTORY -------- (None) [Rating: 16] Favorites ----------- Power Light Ion Engine Engine Light Ion Engine Power Core Micro Nuclear Core Propulsion Xenon Bombardment Thruster Flight Unit Xenon Bombardment Thruster Utility Signal Interpreter Processor Signal Interpreter Hackware System Shield Weapon Mining Laser Special Weapon Mining Laser Slashing Weapon Chainsword Build | -11 -10 -9 -8 -8 -8 -7 ------- Run | Scr Mat Mat Mat Gar Mat Fac Slots Evolved 1 | . . 1 . . . . Power . | . . . . . . . Propulsion . | . . . . . . . Utility 1 | . . 1 . . . . Weapon . | . . . . . . . Parts Attached 9 | 1 3 . 1 . 1 3 Power 2 | 1 . . . . . 1 Engine 1 | 1 . . . . . . Core 1 | . . . . . . 1 Reactor . | . . . . . . . Propulsion 1 | . . . . . . 1 Treads . | . . . . . . . Leg . | . . . . . . . Wheel . | . . . . . . . Hover . | . . . . . . . Flight 1 | . . . . . . 1 Utility 3 | . 1 . 1 . 1 . Device . | . . . . . . . Storage . | . . . . . . . Processor 1 | . 1 . . . . . Hackware 2 | . . . 1 . 1 . Protection . | . . . . . . . Artifact . | . . . . . . . Weapon 3 | . 2 . . . . 1 Energy Gun . | . . . . . . . Energy Cannon . | . . . . . . . Ballistic Gun . | . . . . . . . Ballistic Cannon . | . . . . . . . Launcher . | . . . . . . . Special Weapon 2 | . 2 . . . . . Impact Weapon . | . . . . . . . Slashing Weapon 1 | . . . . . . 1 Piercing Weapon . | . . . . . . . Special Melee Weapon . | . . . . . . . Unidentified Prototypes . | . . . . . . . Parts Lost 2 | . . . 1 1 . . Power 1 | . . . . 1 . . Propulsion . | . . . . . . . Utility . | . . . . . . . Weapon 1 | . . . 1 . . . Highest Loss Streak 1 | . . . 1 1 . . Average Slot Usage (%) 61 | . 61 64 75 50 40 62 Engine 11 | . 25 21 20 10 . . Core 3 | . . . . . . 11 Flight 2 | . . . . . . 7 Processor 20 | . 19 21 20 20 20 20 Hackware 14 | . . . 17 20 20 20 Special Weapon 8 | . 16 21 18 . . . Naked Turns . | . . . . . . . Heaviest Build 9 | 3 4 4 4 3 . 9 Greatest Support 17 | 8 8 8 13 13 13 17 Greatest Overweight (x) . | . . . . . . . Average Overweight (x) . | . . . . . . . Largest Inventory Capacity . | . . . . . . . Average Capacity . | . . . . . . . Most Carried . | . . . . . . . Average Carried . | . . . . . . . Final Capacity . | . . . . . . . Final Carried . | . . . . . . . Class Distribution -------------------- 100% | Hacker-Mutant Dominant Class ---------------- Hacker-Mutant | -10/Materials Hacker-Mutant | -9/Materials Hacker-Mutant | -8/Materials Hacker-Mutant | -8/Garrison Hacker-Mutant | -8/Materials Hacker-Mutant | -7/Factory Resources | -11 -10 -9 -8 -8 -8 -7 ----------- Run | Scr Mat Mat Mat Gar Mat Fac Matter Collected 210 | 210 . . . . . . Remotely . | . . . . . . . Salvage Created . | . . . . . . . Parts . | . . . . . . . Haulers Intercepted . | . . . . . . . Recyclers Shooed . | . . . . . . . Parts Field Recycled . | . . . . . . . Retrieved Matter . | . . . . . . . Parts Self-Destructed . | . . . . . . . Prevented . | . . . . . . . Kills | -11 -10 -9 -8 -8 -8 -7 ------- Run | Scr Mat Mat Mat Gar Mat Fac Combat Hostiles Destroyed . | . . . . . . . Classes Destroyed . | . . . . . . . Best Kill Streak . | . . . . . . . Combat Bots Only . | . . . . . . . Max Kills in Single Turn . | . . . . . . . Gunslinging . | . . . . . . . Exploded . | . . . . . . . Melee . | . . . . . . . Uniques/NPCs Destroyed . | . . . . . . . Combat | -11 -10 -9 -8 -8 -8 -7 -------- Run | Scr Mat Mat Mat Gar Mat Fac Damage Taken 1329 | . 102 . 415 267 39 506 Core 1212 | . 86 . 367 251 39 469 Absorbed by Shields 35 | . . . . 35 . . Redirected to Core 403 | . 52 . 165 52 . 134 Core Remaining (%) 71 | 100 85 85 . . 17 . Volleys Fired 13 | . . . 13 . . . Largest 1 | . . . 1 . . . Hottest 100 | . . . 100 . . . Shots Fired 13 | . . . 13 . . . Gun . | . . . . . . . Cannon . | . . . . . . . Launcher . | . . . . . . . Special 13 | . . . 13 . . . Kinetic . | . . . . . . . Thermal 13 | . . . 13 . . . Explosive . | . . . . . . . Electromagnetic . | . . . . . . . Robot Hit Streak . | . . . . . . . Robot Miss Streak . | . . . . . . . Penetration Max . | . . . . . . . Secondary Targets . | . . . . . . . Shots Hit Robots . | . . . . . . . Core Hits 2 | . 1 . 1 . . . Critical Hits . | . . . . . . . Critical Kills . | . . . . . . . Critical Parts Destroyed . | . . . . . . . Melee Attacks . | . . . . . . . Impact . | . . . . . . . Slashing . | . . . . . . . Piercing . | . . . . . . . Sneak Attacks . | . . . . . . . Combat Hostiles . | . . . . . . . Follow-up Attacks . | . . . . . . . Damage Inflicted 26 | . 14 . 12 . . . Guns . | . . . . . . . Cannons . | . . . . . . . Explosions . | . . . . . . . Melee . | . . . . . . . Ramming 26 | . 14 . 12 . . . Kinetic . | . . . . . . . Thermal . | . . . . . . . Explosive . | . . . . . . . Electromagnetic . | . . . . . . . Impact . | . . . . . . . Slashing . | . . . . . . . Piercing . | . . . . . . . Highest Corruption 1 | . . . 1 1 1 . Average Corruption 1 | . . . 1 1 1 . Corruption Purged . | . . . . . . . Overload Shots . | . . . . . . . Overflow Damage . | . . . . . . . Projectiles . | . . . . . . . Explosions . | . . . . . . . Melee . | . . . . . . . Knockbacks . | . . . . . . . Impact . | . . . . . . . Kinetic . | . . . . . . . Secondary . | . . . . . . . Self-Inflicted Damage 13 | . 7 . 6 . . . Shots . | . . . . . . . Rammed 6 | . 2 . 4 . . . Targets Rammed 6 | . 2 . 4 . . . Kicked . | . . . . . . . Crushed . | . . . . . . . Highest Temperature 169 | . . . 169 2 . 2 Average Temperature 72 | . . . 75 2 . 2 Received Heat Transfer 294 | . 39 . 81 102 18 54 Siege Activations . | . . . . . . . Robots Corrupted . | . . . . . . . Combat Hostiles . | . . . . . . . Parts Fried . | . . . . . . . Impact Corruptions . | . . . . . . . Robots Melted . | . . . . . . . Combat Hostiles . | . . . . . . . Parts Melted . | . . . . . . . Heat Transferred . | . . . . . . . Parts Sabotaged . | . . . . . . . Parts Stolen . | . . . . . . . Parts Stripped . | . . . . . . . Power Chain Reactions . | . . . . . . . Missiles Intercepted . | . . . . . . . Alert | -11 -10 -9 -8 -8 -8 -7 ------- Run | Scr Mat Mat Mat Gar Mat Fac Peak Influence 155 | . 23 60 93 68 82 155 Average Influence 64 | . 11 22 63 55 53 114 Maximum Alert Level . | . . . . . . . Low Security (%) 100 | 100 100 100 100 100 100 100 Level 1 . | . . . . . . . Level 2 . | . . . . . . . Level 3 . | . . . . . . . Level 4 . | . . . . . . . Level 5 . | . . . . . . . High Security . | . . . . . . . Max Security . | . . . . . . . Squads Dispatched 5 | . 1 . 3 . . 1 Investigation . | . . . . . . . Extermination . | . . . . . . . Reinforcement 5 | . 1 . 3 . . 1 Assault . | . . . . . . . Garrison . | . . . . . . . Intercept . | . . . . . . . Construction Impeded . | . . . . . . . Haulers Reinforced . | . . . . . . . Stealth | -11 -10 -9 -8 -8 -8 -7 --------- Run | Scr Mat Mat Mat Gar Mat Fac Distress Signals 4 | . 1 1 1 . 1 . Communications Jammed . | . . . . . . . Distress Signals . | . . . . . . . Times Spotted 51 | . 8 2 19 11 3 8 Peak Tracking Total 13 | . 7 4 12 13 3 5 Tactical Retreats 5 | . 2 . 1 1 . 1 Traps | -11 -10 -9 -8 -8 -8 -7 ------- Run | Scr Mat Mat Mat Gar Mat Fac Traps Triggered 4 | . 2 . . 1 . 1 Indirectly . | . . . . . . . Trap Hack Attempts . | . . . . . . . Triggered . | . . . . . . . Disarmed . | . . . . . . . Reprogrammed . | . . . . . . . Reused . | . . . . . . . Traps Extracted . | . . . . . . . Installed . | . . . . . . . Triggered . | . . . . . . . Machines | -11 -10 -9 -8 -8 -8 -7 ---------- Run | Scr Mat Mat Mat Gar Mat Fac Machines Disabled . | . . . . . . . Max in Single Turn . | . . . . . . . Machines Sabotaged . | . . . . . . . Garrisons Compromised . | . . . . . . . Overloaded Fab Kills . | . . . . . . . Fab Network Shutdowns . | . . . . . . . Hacking | -11 -10 -9 -8 -8 -8 -7 --------- Run | Scr Mat Mat Mat Gar Mat Fac Machines Accessed 13 | . 2 3 4 . 2 2 Terminals 11 | . 2 3 3 . 2 1 Fabricators . | . . . . . . . Repair Stations . | . . . . . . . Recycling Units 1 | . . . . . . 1 Scanalyzers . | . . . . . . . Garrison Access 1 | . . . 1 . . . Total Hacks 74 | . 10 10 19 . 21 14 Successful 54 | . 7 10 13 . 12 12 Failed 20 | . 3 . 6 . 9 2 Catastrophic 1 | . . . . . 1 . Database Lockouts . | . . . . . . . Manual 61 | . 10 7 14 . 18 12 Terminals 68 | . 10 10 18 . 21 9 Fabricators . | . . . . . . . Repair Stations . | . . . . . . . Recycling Units 5 | . . . . . . 5 Scanalyzers . | . . . . . . . Garrison Access 1 | . . . 1 . . . Terminal Hacks 17 | . 1 5 3 . 5 3 Part Schematic 1 | . . . . . . 1 Prototype ID Bank 3 | . . 1 . . 2 . Level Access Points 3 | . . . 1 . 1 1 Machine Index 1 | . . . 1 . . . Terminal Index 4 | . 1 1 1 . 1 . Alert Level 1 | . . . . . . 1 Unreport Threat 2 | . . 2 . . . . Registered Components 1 | . . . . . 1 . Registered Prototypes 1 | . . 1 . . . . Fabricator Hacks . | . . . . . . . Repair Station Hacks . | . . . . . . . Recycling Unit Hacks 1 | . . . . . . 1 Report Inventory 1 | . . . . . . 1 Scanalyzer . | . . . . . . . Garrison Access Hacks 1 | . . . 1 . . . Unlock Access 1 | . . . 1 . . . Unauthorized Hacks 79 | . 14 10 20 . 17 18 Terminals 31 | . 6 5 9 . 7 4 Track 10 | . 2 2 3 . 2 1 Botnet 10 | . 2 2 3 . 2 1 Disrupt 6 | . 1 . 2 . 2 1 Operators 5 | . 1 1 1 . 1 1 Fabricators . | . . . . . . . Repair Stations . | . . . . . . . Recycling Units 4 | . . . . . . 4 Monitor 1 | . . . . . . 1 Reject 1 | . . . . . . 1 Recyclers 1 | . . . . . . 1 Mask 1 | . . . . . . 1 Scanalyzers . | . . . . . . . Garrison Access . | . . . . . . . Data Cores Recovered . | . . . . . . . Used . | . . . . . . . Hacking Detections 11 | . 2 2 4 . 2 1 Full Trace Events . | . . . . . . . Feedback Events . | . . . . . . . Feedback Blocked . | . . . . . . . Robot Schematics Acquired . | . . . . . . . Robots Built . | . . . . . . . Matter . | . . . . . . . Time . | . . . . . . . Total Robot Build Rating . | . . . . . . . Part Schematics Acquired 1 | . . . . . . 1 Parts Built . | . . . . . . . Matter . | . . . . . . . Time . | . . . . . . . Total Part Build Rating . | . . . . . . . Parts Repaired . | . . . . . . . Time . | . . . . . . . Parts Recycled . | . . . . . . . Recycled Matter . | . . . . . . . Retrieved Matter . | . . . . . . . Retrieved Components . | . . . . . . . Parts Scanalyzed . | . . . . . . . Part Schematics Acquired . | . . . . . . . Parts Damaged . | . . . . . . . Bothacking | -11 -10 -9 -8 -8 -8 -7 ------------ Run | Scr Mat Mat Mat Gar Mat Fac Used RIF Installer . | . . . . . . . Robots Hacked . | . . . . . . . Non-combat . | . . . . . . . Combat . | . . . . . . . Robot Hacks Applied . | . . . . . . . Relay Couplers Released . | . . . . . . . Robots Rewired . | . . . . . . . Allies Hacked . | . . . . . . . Hacks Repelled . | . . . . . . . Allies | -11 -10 -9 -8 -8 -8 -7 -------- Run | Scr Mat Mat Mat Gar Mat Fac Total Allies . | . . . . . . . Largest Group . | . . . . . . . Highest-Rated Group . | . . . . . . . Highest-Rated Ally . | . . . . . . . Total Orders . | . . . . . . . Ally Attacks . | . . . . . . . Total Damage . | . . . . . . . Kills . | . . . . . . . Allies Corrupted . | . . . . . . . Allies Melted . | . . . . . . . Intel | -11 -10 -9 -8 -8 -8 -7 ------- Run | Scr Mat Mat Mat Gar Mat Fac Robot Analysis Total . | . . . . . . . Derelict Logs Recovered . | . . . . . . . Drone Launches . | . . . . . . . Drone Recoveries . | . . . . . . . Exploration | -11 -10 -9 -8 -8 -8 -7 ------------- Run | Scr Mat Mat Mat Gar Mat Fac Turns Passed 647 | 12 90 68 139 65 79 194 Spaces Moved 1152 | 22 166 135 158 121 150 400 Core 994 | 22 166 135 158 121 150 242 Treads . | . . . . . . . Legs . | . . . . . . . Wheels . | . . . . . . . Hover . | . . . . . . . Flight 158 | . . . . . . 158 Fastest Speed 40 | 50 50 50 50 50 50 40 Average Speed 48 | 50 50 50 50 50 50 46 Slowest Speed 50 | 50 50 50 50 50 50 50 Overloaded Moves . | . . . . . . . Propulsion Burnouts . | . . . . . . . Robots Hopped 2 | . . . . . . 2 Cave-ins Triggered 2 | . . . 2 . . . Exploration Rate (%) 25 | 3 43 21 22 43 24 19 Regions Visited 6 Branch Regions . Pre-discovered Areas . | . . . . . . . Known Exits Taken 4 | . 1 1 1 . 1 . Unknown Exits Taken 1 | 1 . . . . . . Scrap Searched . | . . . . . . . Spaces Dug 13 | . . . 13 . . . Terrain Destroyed 13 | . . . 13 . . . Melee . | . . . . . . . Projectile 13 | . . . 13 . . . AOE . | . . . . . . . Actions | -11 -10 -9 -8 -8 -8 -7 --------- Run | Scr Mat Mat Mat Gar Mat Fac Total 1186 | 22 170 134 178 124 152 406 Wait 4 | . . . 2 . 2 . Move 1142 | 21 165 134 157 120 149 396 Hop 2 | . . . . . . 2 Pick Up . | . . . . . . . Fast Attach 8 | 1 3 . 1 . . 3 Attach . | . . . . . . . Detach . | . . . . . . . Swap 1 | . . . . . 1 . Drop . | . . . . . . . Fire 13 | . . . 13 . . . Melee . | . . . . . . . Ram 6 | . 2 . 4 . . . Kick . | . . . . . . . Crush . | . . . . . . . Escape Stasis 5 | . . . 1 4 . . Rewire . | . . . . . . . Trap . | . . . . . . . Miscellaneous 5 | . . . . . . 5 Route ------- -11/Scrapyard -10/Materials -9/Materials -8/Materials (discovered 4 exits: Fac x3 / Gar) -8/Garrison -8/Materials (discovered 3 exits: *Fac x3) -7/Factory (discovered 4 exits: Fac x4) History --------- Turn | Location | Event 5 | -11/Scrapyard | Discovered new exit (range 16) 13 | -11/Scrapyard | Entered Materials 95 | -10/Materials | Discovered new exit (range 16) 102 | -10/Materials | Identified exit to Materials 103 | -10/Materials | Entered another Materials area 105 | -9/Materials | Reached level 2 121 | -9/Materials | Upgraded with Utility slot (x1) 158 | -9/Materials | Discovered new exit (range 15) 170 | -9/Materials | Identified exit to Materials 171 | -9/Materials | Entered another Materials area 173 | -8/Materials | Reached level 3 236 | -8/Materials | Identified exit to Factory 270 | -8/Materials | Crushed by falling debris 278 | -8/Materials | Crushed by falling debris 298 | -8/Materials | Core integrity fell below 50% 306 | -8/Materials | Build established: Hacker-Mutant 310 | -8/Materials | Identified exit to Garrison 310 | -8/Materials | Entered Garrison 328 | -8/Garrison | Triggered checkpoint 346 | -8/Garrison | Core integrity fell below 20% 353 | -8/Garrison | Triggered checkpoint 371 | -8/Garrison | Discovered new exit (range 8) 374 | -8/Garrison | Identified exit to Materials 375 | -8/Garrison | Entered Materials 454 | -8/Materials | Entered Factory 455 | -7/Factory | Core integrity fell below 50% 455 | -7/Factory | Core integrity fell below 20% 456 | -7/Factory | Reached level 4 580 | -7/Factory | Identified exit to Factory 648 | -7/Factory | Destroyed by exploding Power Conduit Last Messages --------------- Schematic downloaded. 00580_ Upgraded: Core Integrity (+200) 00583_ P-60 Hacker destroyed. 00584_ Slug penetrates Wall. 00587_ Slug penetrates Construction Platform. 00588_ Used Protomatter to restore core integrity (+108, depleted) 00588_ Penetrated by Slug. 00593_ Slug penetrates Wall. 00603_ K-01 Serf collects debris. 00606_ >> MONITOR: Recycling Unit F002 accepting Structural Scanner(75%). 00607_ K-01 Serf collects debris. 00609_ >> MONITOR: Recycling Unit F002 accepting Lgt. Ion Engine(100%). 00610_ Acquired Chainsword. 00612_ >> MONITOR: Recycling Unit F002 accepting Terrain Scanner(100%). 00615_ >> MONITOR: Recycling Unit F002 accepting Wheel(85%). 00648_ Triggered Proton Bomb Trap. 00648_ A bubble of electromagnetic force engulfs the area. 00648_ Power Conduit explodes. 00648_ Door malfunctions. 00648_ Power Conduit explodes. Map ----- +----------------------------------------------------+ | ?????????????????????????????????? | | ?????????????????????????????????? | | ?????????????????????????????????? | | ?????????????????????????????????? | | ?????????????????????????????????? | | ??????